fUSD/lending_fUSD_20250204
["ID","MTS","AMOUNT","RATE_DAILY","PERIOD"]
[351611456,1738662635775,-500.0,8.766e-05,2]
[351611457,1738662635785,-500.0,8.766e-05,2]
[351611458,1738662635794,-727.33,8.766e-05,2]
[351611459,1738662635804,-1367.41,8.766e-05,2]
[351611460,1738662635814,-500.0,8.766e-05,2]
[351611461,1738662635823,-500.0,8.766e-05,2]
[351611462,1738662635834,-500.0,8.766e-05,2]
[351611463,1738662635846,-915.38,8.766e-05,2]
[351611464,1738662635855,-500.0,8.766e-05,2]
[351611465,1738662635865,-613.67,8.766e-05,2]
[351611466,1738662635875,-654.98,8.766e-05,2]
[351611467,1738662635884,-500.0,8.766e-05,2]
[351611468,1738662635894,-1044.31,8.766e-05,2]
[351611469,1738662635903,-561.8,8.766e-05,2]
[351611470,1738662635912,-500.0,8.766e-05,2]
[351611471,1738662635923,-500.0,8.766e-05,2]
[351611472,1738662635932,-500.0,8.766e-05,2]
[351611473,1738662635942,-1316.21,8.766e-05,2]
[351611474,1738662635951,-805.16,8.766e-05,2]
[351611475,1738662635960,-500.0,8.766e-05,2]
[351611476,1738662635969,-500.0,8.766e-05,2]
[351611477,1738662635978,-500.0,8.766e-05,2]
[351611478,1738662635987,-500.0,8.766e-05,2]
[351611479,1738662635996,-500.0,8.766e-05,2]
[351611480,1738662636007,-541.51,8.766e-05,2]
[351611481,1738662636017,-873.3,8.766e-05,2]
[351611482,1738662636027,-500.0,8.766e-05,2]
[351611483,1738662636036,-786.22,8.766e-05,2]
[351611484,1738662636046,-763.09,8.766e-05,2]
[351611485,1738662636055,-1087.95,8.766e-05,2]
[351611486,1738662636065,-500.0,8.766e-05,2]
[351611487,1738662636075,-310.37144551,8.766e-05,2]
[351611488,1738662636083,-706.13,8.767e-05,2]
[351611489,1738662636093,-500.0,8.767e-05,2]
[351611490,1738662636103,-500.0,8.767e-05,2]
[351611491,1738662636113,-500.0,8.767e-05,2]
[351611492,1738662636122,-500.0,8.767e-05,2]
[351611493,1738662636131,-500.0,8.767e-05,2]
[351611494,1738662636140,-720.93,8.767e-05,2]
[351611495,1738662636150,-698.29,8.767e-05,2]
[351611496,1738662636160,-739.15,8.767e-05,2]
[351611497,1738662636170,-500.0,8.767e-05,2]
[351611498,1738662636179,-726.57,8.767e-05,2]
[351611499,1738662636189,-516.2,8.767e-05,2]
[351611500,1738662636198,-500.0,8.767e-05,2]
[351611501,1738662636207,-570.47,8.767e-05,2]
[351611502,1738662636217,-500.0,8.767e-05,2]
[351611503,1738662636226,-500.0,8.767e-05,2]
[351611504,1738662636236,-691.77,8.767e-05,2]
[351611505,1738662636245,-500.0,8.767e-05,2]
[351611506,1738662636255,-500.0,8.767e-05,2]
[351611507,1738662636264,-500.0,8.767e-05,2]
[351611508,1738662636274,-622.49,8.767e-05,2]
[351611509,1738662636284,-500.0,8.767e-05,2]
[351611510,1738662636293,-500.0,8.767e-05,2]
[351611511,1738662636304,-500.0,8.767e-05,2]
[351611512,1738662636314,-752.82,8.767e-05,2]
[351611513,1738662636324,-500.0,8.767e-05,2]
[351611514,1738662636333,-500.0,8.767e-05,2]
[351611515,1738662636343,-500.0,8.767e-05,2]
[351611516,1738662636352,-726.27,8.767e-05,2]
[351611517,1738662636364,-500.0,8.767e-05,2]
[351611518,1738662636375,-616.77908935,8.767e-05,2]
[351611519,1738662636384,-500.0,8.767e-05,2]
[351611520,1738662636394,-500.0,8.767e-05,2]
[351611521,1738662636419,-500.0,8.767e-05,2]
[351611522,1738662636428,-500.0,8.767e-05,2]
[351611523,1738662636438,-500.0,8.767e-05,2]
[351611524,1738662636447,-612.49,8.767e-05,2]
[351611525,1738662636456,-500.0,8.767e-05,2]
[351611526,1738662636466,-689.43,8.767e-05,2]
[351611527,1738662636475,-500.0,8.767e-05,2]
[351611528,1738662636485,-500.0,8.767e-05,2]
[351611529,1738662636494,-730.26,8.767e-05,2]
[351611530,1738662636505,-597.97,8.767e-05,2]
[351611531,1738662636515,-913.09,8.767e-05,2]
[351611532,1738662636525,-500.0,8.767e-05,2]
[351611533,1738662636534,-500.0,8.767e-05,2]
[351611534,1738662636544,-500.0,8.767e-05,2]
[351611535,1738662636553,-980.4,8.767e-05,2]
[351611536,1738662636562,-1028.02,8.767e-05,2]
[351611537,1738662636572,-500.0,8.767e-05,2]
[351611538,1738662636581,-1027.08,8.767e-05,2]
[351611539,1738662636591,-500.0,8.767e-05,2]
[351611540,1738662636601,-637.76,8.767e-05,2]
[351611541,1738662636610,-500.0,8.767e-05,2]
[351611542,1738662636620,-872.63,8.767e-05,2]
[351611543,1738662636629,-500.0,8.767e-05,2]
[351611544,1738662636638,-696.07,8.767e-05,2]
[351611545,1738662636647,-503.05,8.767e-05,2]
[351611546,1738662636657,-500.0,8.767e-05,2]
[351611547,1738662636668,-500.0,8.767e-05,2]
[351611548,1738662636678,-1742.56,8.767e-05,2]
[351611549,1738662636690,-898.78,8.767e-05,2]
[351611550,1738662636698,-1294.39,8.767e-05,2]
[351611551,1738662636709,-500.0,8.767e-05,2]
[351611552,1738662636718,-571.26,8.767e-05,2]
[351611553,1738662636727,-1532.76,8.767e-05,2]
[351611554,1738662636738,-500.0,8.767e-05,2]
[351611555,1738662636751,-1136.39,8.767e-05,2]
[351611556,1738662636760,-500.0,8.767e-05,2]
[351611557,1738662636771,-500.0,8.767e-05,2]
[351611558,1738662636781,-698.6,8.767e-05,2]
[351611559,1738662636793,-1439.89,8.767e-05,2]
[351611560,1738662636803,-1021.6,8.767e-05,2]
[351611561,1738662636815,-984.44,8.767e-05,2]
[351611562,1738662636826,-1576.84,8.767e-05,2]
[351611563,1738662636841,-500.0,8.767e-05,2]
[351611564,1738662636852,-1723.92,8.767e-05,2]
[351611565,1738662636862,-503.48323494,8.767e-05,2]
[351611566,1738662636875,-1860.37,8.767e-05,2]
[351611567,1738662636884,-520.11,8.767e-05,2]
[351611568,1738662636894,-789.05,8.767e-05,2]
[351611569,1738662636903,-843.6,8.767e-05,2]
[351611570,1738662636913,-2456.87,8.767e-05,2]
[351611571,1738662636922,-500.0,8.767e-05,2]
[351611572,1738662637163,-500.0,8.767e-05,2]
[351611573,1738662637173,-1556.44,8.767e-05,2]
[351611574,1738662637183,-500.0,8.767e-05,2]
[351611575,1738662637193,-500.0,8.767e-05,2]
[351611576,1738662637202,-734.58,8.767e-05,2]
[351611577,1738662637211,-1219.07,8.767e-05,2]
[351611578,1738662637220,-866.72,8.767e-05,2]
[351611579,1738662637230,-1418.29,8.767e-05,2]
[351611580,1738662637239,-553.17,8.767e-05,2]
[351611581,1738662637248,-877.82,8.767e-05,2]
[351611582,1738662637258,-2341.33,8.767e-05,2]
[351611583,1738662637268,-1106.48,8.767e-05,2]
[351611584,1738662637277,-500.0,8.767e-05,2]
[351611585,1738662637286,-500.0,8.767e-05,2]
[351611586,1738662637295,-1351.93,8.767e-05,2]
[351611587,1738662637304,-1738.41,8.767e-05,2]
[351611588,1738662637313,-571.51,8.767e-05,2]
[351611589,1738662637323,-613.71,8.767e-05,2]
[351611590,1738662637332,-2476.34,8.767e-05,2]
[351611591,1738662637342,-505.18,8.767e-05,2]
[351611592,1738662637351,-1694.48,8.767e-05,2]
[351611593,1738662637360,-1594.38,8.767e-05,2]
[351611594,1738662637370,-1004.58,8.767e-05,2]
[351611595,1738662637379,-2080.24,8.767e-05,2]
[351611596,1738662637389,-596.19,8.767e-05,2]
[351611597,1738662637399,-2247.18,8.767e-05,2]
[351611598,1738662637408,-1123.58,8.767e-05,2]
[351611599,1738662637417,-1694.14,8.767e-05,2]
[351611600,1738662637427,-1705.2,8.767e-05,2]
[351611601,1738662637437,-500.0,8.767e-05,2]
[351611602,1738662637447,-500.0,8.767e-05,2]
[351611603,1738662637457,-1587.71,8.767e-05,2]
[351611604,1738662637467,-891.4,8.767e-05,2]
[351611605,1738662637477,-500.0,8.767e-05,2]
[351611606,1738662637486,-2125.206,8.768e-05,2]
[351611607,1738662637496,-168.806,8.768e-05,2]
[351611608,1738662637509,-258.3123091,8.79e-05,3]
[351611609,1738662637519,-151.51,8.79e-05,2]
[351611610,1738662637528,-1870.82,8.79e-05,2]
[351611611,1738662637538,-1862.83,8.79e-05,2]
[351611612,1738662637548,-1498.56,8.79e-05,2]
[351611613,1738662637558,-1344.88,8.79e-05,2]
[351611614,1738662637568,-1218.27,8.79e-05,2]
[351611615,1738662637578,-546.55,8.79e-05,2]
[351611616,1738662637589,-573.08,8.79e-05,2]
[351611617,1738662637599,-1235.52,8.79e-05,2]
[351611618,1738662637610,-1773.43,8.79e-05,2]
[351611619,1738662637620,-1671.95,8.79e-05,2]
[351611621,1738662637630,-1805.8,8.79e-05,2]
[351611622,1738662637640,-1547.67,8.79e-05,2]
[351611624,1738662637650,-500.0,8.79e-05,2]
[351611626,1738662637660,-1189.15,8.79e-05,2]
[351611628,1738662637670,-1354.47,8.79e-05,2]
[351611631,1738662637680,-500.0,8.791e-05,2]
[351611633,1738662637690,-500.0,8.791e-05,2]
[351611635,1738662637700,-500.0,8.791e-05,2]
[351611637,1738662637710,-500.0,8.791e-05,2]
[351611638,1738662637719,-500.0,8.791e-05,2]
[351611639,1738662637730,-500.0,8.791e-05,2]
[351611640,1738662637739,-500.0,8.791e-05,2]
[351611641,1738662637749,-500.0,8.791e-05,2]
[351611642,1738662637765,-500.0,8.791e-05,2]
[351611643,1738662637774,-500.0,8.791e-05,2]
[351611644,1738662637784,-500.0,8.791e-05,2]
[351611645,1738662637794,-500.0,8.791e-05,2]
[351611646,1738662637804,-500.0,8.791e-05,2]
[351611647,1738662637813,-650.26,8.791e-05,2]
[351611648,1738662637823,-500.0,8.791e-05,2]
[351611649,1738662637833,-577.45,8.791e-05,2]
[351611650,1738662637848,-500.0,8.791e-05,2]
[351611651,1738662637858,-500.0,8.791e-05,2]
[351611652,1738662637868,-500.0,8.791e-05,2]
[351611653,1738662637877,-500.0,8.791e-05,2]
[351611654,1738662637888,-500.0,8.791e-05,2]
[351611655,1738662637898,-982.17,8.791e-05,2]
[351611656,1738662637907,-570.49,8.791e-05,2]
[351611657,1738662637918,-681.21,8.791e-05,2]
[351611658,1738662637928,-500.0,8.791e-05,2]
[351611659,1738662637938,-500.0,8.791e-05,2]
[351611660,1738662637948,-500.0,8.791e-05,2]
[351611661,1738662637958,-500.0,8.791e-05,2]
[351611662,1738662637968,-500.0,8.791e-05,2]
[351611663,1738662637977,-500.0,8.791e-05,2]
[351611664,1738662637987,-502.98777218,8.791e-05,2]
[351611665,1738662637997,-500.0,8.791e-05,2]
[351611666,1738662638010,-500.0,8.791e-05,2]
[351611667,1738662638020,-500.0,8.791e-05,2]
[351611668,1738662638029,-550.23,8.791e-05,2]
[351611669,1738662638039,-1044.38,8.791e-05,2]
[351611670,1738662638049,-500.0,8.791e-05,2]
[351611671,1738662638059,-673.13,8.791e-05,2]
[351611672,1738662638070,-500.0,8.791e-05,2]
[351611673,1738662638081,-692.41,8.791e-05,2]
[351611674,1738662638091,-500.0,8.791e-05,2]
[351611675,1738662638101,-609.33,8.791e-05,2]
[351611676,1738662638110,-515.12,8.791e-05,2]
[351611677,1738662638120,-500.0,8.791e-05,2]
[351611678,1738662638130,-500.0,8.791e-05,2]
[351611679,1738662638141,-500.0,8.791e-05,2]
[351611680,1738662638151,-356.1551328,8.791e-05,2]
[351611681,1738662638161,-500.0,8.791e-05,2]
[351611682,1738662638171,-619.35,8.791e-05,2]
[351611683,1738662638181,-745.2,8.791e-05,2]
[351611684,1738662638191,-500.0,8.791e-05,2]
[351611685,1738662638200,-500.0,8.791e-05,2]
[351611686,1738662638210,-500.0,8.791e-05,2]
[351611687,1738662638220,-500.0,8.791e-05,2]
[351611688,1738662638230,-500.0,8.791e-05,2]
[351611689,1738662638239,-500.0,8.791e-05,2]
[351611690,1738662638249,-500.0,8.791e-05,2]
[351611691,1738662638262,-580.86,8.791e-05,2]
[351611692,1738662638272,-500.0,8.791e-05,2]
[351611693,1738662638282,-500.0,8.791e-05,2]
[351611694,1738662638293,-500.0,8.791e-05,2]
[351611695,1738662638303,-500.0,8.791e-05,2]
[351611696,1738662638313,-560.9549369,8.791e-05,2]
[351611697,1738662638324,-500.0,8.791e-05,2]
[351611698,1738662638334,-500.0,8.791e-05,2]
[351611699,1738662638344,-874.99,8.791e-05,2]
[351611700,1738662638354,-1544.37,8.791e-05,2]
[351611701,1738662638365,-500.0,8.791e-05,2]
[351611702,1738662638375,-517.52,8.791e-05,2]
[351611703,1738662638385,-500.0,8.791e-05,2]
[351611704,1738662638395,-598.1,8.791e-05,2]
[351611705,1738662638406,-500.0,8.791e-05,2]
[351611706,1738662638416,-548.52,8.791e-05,2]
[351611707,1738662638426,-298.37731098,8.791e-05,2]
[351611708,1738662638436,-584.43,8.791e-05,2]
[351611709,1738662638446,-500.0,8.791e-05,2]
[351611710,1738662638456,-751.73,8.791e-05,2]
[351611711,1738662638466,-723.26,8.791e-05,2]
[351611712,1738662638477,-500.0,8.791e-05,2]
[351611713,1738662638487,-500.0,8.791e-05,2]
[351611715,1738662638497,-996.3,8.791e-05,2]
[351611717,1738662638511,-602.61,8.791e-05,2]
[351611718,1738662638523,-500.0,8.791e-05,2]
[351611720,1738662638534,-500.0,8.791e-05,2]
[351611722,1738662638545,-926.9,8.791e-05,2]
[351611724,1738662638556,-500.0,8.791e-05,2]
[351611725,1738662638567,-500.0,8.791e-05,2]
[351611727,1738662638578,-893.42,8.791e-05,2]
[351611729,1738662638589,-1324.25,8.791e-05,2]
[351611731,1738662638599,-500.0,8.791e-05,2]
[351611733,1738662638608,-551.21,8.791e-05,2]
[351611734,1738662638618,-500.0,8.791e-05,2]
[351611736,1738662638628,-500.0,8.791e-05,2]
[351611738,1738662638637,-524.8,8.791e-05,2]
[351611740,1738662638647,-500.0,8.791e-05,2]
[351611742,1738662638657,-783.7,8.791e-05,2]
[351611744,1738662638667,-608.26,8.791e-05,2]
[351611745,1738662638676,-947.0,8.791e-05,2]
[351611747,1738662638686,-1202.54,8.791e-05,2]
[351611749,1738662638695,-531.82,8.791e-05,2]
[351611751,1738662638704,-500.0,8.791e-05,2]
[351611753,1738662638714,-708.98,8.791e-05,2]
[351611754,1738662638723,-500.0,8.791e-05,2]
[351611756,1738662638733,-500.0,8.791e-05,2]
[351611758,1738662638743,-1024.67,8.791e-05,2]
[351611760,1738662638752,-500.0,8.791e-05,2]
[351611762,1738662638765,-638.65,8.791e-05,2]
[351611764,1738662638775,-500.0,8.791e-05,2]
[351611765,1738662638785,-635.2,8.791e-05,2]
[351611767,1738662638795,-693.49,8.791e-05,2]
[351611769,1738662638805,-500.0,8.791e-05,2]
[351611771,1738662638814,-1368.99,8.791e-05,2]
[351611773,1738662638824,-500.0,8.791e-05,2]
[351611775,1738662638835,-736.2,8.791e-05,2]
[351611777,1738662638847,-769.84,8.791e-05,2]
[351611779,1738662638857,-500.0,8.791e-05,2]
[351611781,1738662638866,-956.61,8.791e-05,2]
[351611783,1738662638876,-500.0,8.791e-05,2]
[351611784,1738662638887,-500.0,8.791e-05,2]
[351611786,1738662638896,-500.0,8.791e-05,2]
[351611788,1738662638906,-500.0,8.791e-05,2]
[351611790,1738662638915,-825.53,8.791e-05,2]
[351611792,1738662638925,-500.0,8.791e-05,2]
[351611793,1738662638935,-576.5,8.791e-05,2]
[351611795,1738662638944,-500.0,8.791e-05,2]
[351611797,1738662638954,-1124.38,8.791e-05,2]
[351611799,1738662638964,-500.0,8.791e-05,2]
[351611801,1738662638973,-500.0,8.791e-05,2]
[351611803,1738662638983,-500.0,8.791e-05,2]
[351611804,1738662638993,-500.0,8.791e-05,2]
[351611806,1738662639003,-570.26,8.791e-05,2]
[351611808,1738662639018,-540.21,8.791e-05,2]
[351611810,1738662639028,-500.0,8.791e-05,2]
[351611812,1738662639038,-500.0,8.791e-05,2]
[351611814,1738662639053,-561.83,8.791e-05,2]
[351611816,1738662639062,-500.0,8.791e-05,2]
[351611818,1738662639072,-500.0,8.791e-05,2]
[351611820,1738662639082,-500.0,8.791e-05,2]
[351611822,1738662639091,-595.61918706,8.791e-05,2]
[351611823,1738662639101,-513.97,8.791e-05,2]
[351611825,1738662639111,-500.0,8.791e-05,2]
[351611827,1738662639121,-500.0,8.791e-05,2]
[351611829,1738662639130,-500.0,8.791e-05,2]
[351611831,1738662639141,-749.55,8.791e-05,2]
[351611833,1738662639151,-765.99,8.791e-05,2]
[351611835,1738662639160,-500.0,8.791e-05,2]
[351611837,1738662639170,-507.54,8.791e-05,2]
[351611839,1738662639182,-500.0,8.791e-05,2]
[351611841,1738662639191,-500.0,8.791e-05,2]
[351611842,1738662639201,-805.71,8.791e-05,2]
[351611844,1738662639210,-500.0,8.791e-05,2]
[351611846,1738662639220,-500.0,8.791e-05,2]
[351611848,1738662639229,-1041.41,8.791e-05,2]
[351611850,1738662639239,-884.8,8.791e-05,2]
[351611852,1738662639249,-500.0,8.791e-05,2]
[351611854,1738662639263,-500.0,8.791e-05,2]
[351611856,1738662639272,-500.0,8.791e-05,2]
[351611858,1738662639282,-500.0,8.791e-05,2]
[351611860,1738662639291,-513.51,8.791e-05,2]
[351611862,1738662639301,-500.0,8.791e-05,2]
[351611863,1738662639311,-500.0,8.791e-05,2]
[351611864,1738662639321,-500.0,8.791e-05,2]
[351611865,1738662639331,-500.0,8.791e-05,2]
[351611866,1738662639340,-500.0,8.791e-05,2]
[351611867,1738662639350,-658.18,8.791e-05,2]
[351611868,1738662639359,-500.0,8.791e-05,2]
[351611869,1738662639369,-500.0,8.791e-05,2]
[351611870,1738662639378,-500.0,8.791e-05,2]
[351611871,1738662639387,-718.11,8.791e-05,2]
[351611872,1738662639398,-500.0,8.791e-05,2]
[351611873,1738662639407,-642.43,8.791e-05,2]
[351611874,1738662639417,-1194.78,8.791e-05,2]
[351611875,1738662639426,-500.0,8.791e-05,2]
[351611876,1738662639436,-500.0,8.791e-05,2]
[351611877,1738662639447,-500.0,8.791e-05,2]
[351611878,1738662639456,-206.52776348,8.791e-05,2]
[351611879,1738662639466,-500.0,8.791e-05,2]
[351611880,1738662639476,-537.61,8.791e-05,2]
[351611881,1738662639486,-1218.05,8.791e-05,2]
[351611883,1738662639496,-500.0,8.791e-05,2]
[351611885,1738662639508,-1849.24,8.791e-05,2]
[351611887,1738662639518,-500.0,8.791e-05,2]
[351611889,1738662639527,-500.0,8.791e-05,2]
[351611891,1738662639538,-500.0,8.791e-05,2]
[351611893,1738662639547,-500.0,8.791e-05,2]
[351611895,1738662639557,-789.18,8.791e-05,2]
[351611897,1738662639566,-608.9,8.791e-05,2]
[351611907,1738662639660,-500.0,8.791e-05,2]
[351611909,1738662639670,-824.37,8.791e-05,2]
[351611913,1738662639680,-500.0,8.791e-05,2]
[351611915,1738662639690,-500.0,8.791e-05,2]
[351611916,1738662639699,-611.4,8.791e-05,2]
[351611918,1738662639708,-759.68,8.791e-05,2]
[351611920,1738662639718,-611.94,8.791e-05,2]
[351611922,1738662639727,-1316.47,8.791e-05,2]
[351611924,1738662639737,-906.34,8.791e-05,2]
[351611926,1738662639746,-666.77,8.791e-05,2]
[351611929,1738662639757,-500.0,8.791e-05,2]
[351611930,1738662639767,-500.0,8.791e-05,2]
[351611933,1738662639777,-500.0,8.791e-05,2]
[351611935,1738662639786,-513.05,8.791e-05,2]
[351611936,1738662639795,-780.48,8.791e-05,2]
[351611939,1738662639805,-558.56,8.792e-05,2]
[351611940,1738662639814,-657.97,8.792e-05,2]
[351611943,1738662639823,-815.29,8.792e-05,2]
[351611945,1738662639836,-500.0,8.792e-05,2]
[351611947,1738662639845,-805.39,8.792e-05,2]
[351611948,1738662639854,-1144.21,8.792e-05,2]
[351611950,1738662639863,-865.92,8.792e-05,2]
[351611952,1738662639872,-1150.8,8.792e-05,2]
[351611954,1738662639882,-517.43,8.792e-05,2]
[351611956,1738662639891,-1183.47,8.792e-05,2]
[351611958,1738662639900,-500.0,8.792e-05,2]
[351611960,1738662639910,-500.0,8.792e-05,2]
[351611962,1738662639919,-759.37,8.792e-05,2]
[351611964,1738662639928,-886.49,8.792e-05,2]
[351611966,1738662639937,-500.0,8.792e-05,2]
[351611968,1738662639946,-952.14,8.792e-05,2]
[351611970,1738662639956,-500.0,8.792e-05,2]
[351611972,1738662639965,-770.62,8.792e-05,2]
[351611974,1738662639974,-500.0,8.792e-05,2]
[351611976,1738662639985,-1109.37,8.792e-05,2]
[351611978,1738662639994,-500.0,8.792e-05,2]
[351611980,1738662640004,-500.0,8.792e-05,2]
[351611982,1738662640015,-789.01,8.792e-05,2]
[351611985,1738662640024,-501.45,8.792e-05,2]
[351611987,1738662640033,-1502.0,8.8e-05,2]
[351611989,1738662640042,-113495.92647219,8.8e-05,2]
[351612031,1738662640466,-24485.45821128,8.8e-05,2]
[351612033,1738662640477,-9423.99800782,8.8e-05,2]
[351612167,1738662641776,-532.8,8.654e-05,2]
[351612169,1738662641787,-207.54726879,8.791e-05,2]
[351612171,1738662641800,-325.25273121,8.791e-05,2]
[351612173,1738662641810,-1751.09032307,8.8e-05,2]
[351612176,1738662641831,-1248.82727493,8.8e-05,2]
[351612179,1738662641848,-1479.765,8.8e-05,2]
[351612182,1738662641876,-23572.34410261,8.8e-05,2]
[351612193,1738662641968,-8595.71340036,8.8e-05,2]
[351612198,1738662642003,-1200.11769552,8.8e-05,2]
[351612262,1738662642618,-500.0,8.767e-05,2]
[351612264,1738662642629,-2760.07,8.767e-05,2]
[351612267,1738662642640,-232774.90282232,8.8e-05,2]
[351612280,1738662642720,-677.12645,8.8e-05,2]
[351612283,1738662642741,-7153.73604969,8.8e-05,2]
[351612284,1738662642774,-1092.27862809,8.8e-05,2]
[351612285,1738662642787,-576.99,8.8e-05,2]
[351612335,1738662643336,-560.47152291,8.766e-05,2]
[351612585,1738662695494,994.56,8.766e-05,30]
[351612586,1738662695712,994.56,8.903e-05,30]
[351612587,1738662695960,994.56,9.04e-05,30]
[351612588,1738662696199,994.56,9.177e-05,30]
[351612589,1738662696446,994.56,9.314e-05,30]
[351612590,1738662696712,994.56,9.451e-05,30]
[351612591,1738662696956,994.56,9.588e-05,30]
[351612592,1738662697198,994.56,9.725e-05,30]
[351612593,1738662697465,994.56,9.862e-05,30]
[351612594,1738662697682,994.56,9.999e-05,30]
[351612595,1738662697943,994.56,0.00010136,30]
[351612596,1738662698189,994.56,0.00010273,30]
[351612597,1738662698450,994.56,0.0001041,30]
[351612598,1738662698691,994.56,0.00010547,30]
[351612599,1738662698935,994.56,0.00010684,30]
[351612600,1738662699170,994.56,0.00010821,30]
[351612601,1738662699540,994.56,0.00010958,30]
[351612602,1738662699663,994.56,0.00011095,30]
[351612603,1738662699923,994.56,0.00011232,30]
[351612604,1738662700177,994.56,0.00011369,30]
[351612605,1738662700433,994.56,0.00011506,30]
[351612606,1738662700683,994.56,0.00011643,30]
[351612607,1738662701007,994.56,0.0001178,30]
[351612608,1738662701264,994.62534195,0.00011917,30]
[351612610,1738662852820,653.68,7.939e-05,2]
[351612611,1738662857107,145253.70943056,8e-05,2]
[351612612,1738662904377,156.0,8e-05,30]
[351612613,1738662904856,156.0,8.875e-05,30]
[351612614,1738662905018,156.0,9.75e-05,30]
[351612615,1738662905367,156.0,0.00010625,30]
[351612616,1738662905693,156.0,0.000115,30]
[351612617,1738662906020,156.0,0.00012375,30]
[351612618,1738663015904,-150.0,0.00018953,120]
[351612619,1738663015927,-150.0,0.00018986,120]
[351612620,1738663092359,1975.03,7.891e-05,2]
[351612621,1738663142336,50000.0,8e-05,3]
[351612623,1738663203609,157.0,8e-05,30]
[351612624,1738663204167,157.0,9.4e-05,30]
[351612625,1738663205907,157.0,0.000108,30]
[351612626,1738663206267,157.0,0.000122,30]
[351612627,1738663325623,14563.67,7.878e-05,2]
[351612628,1738663504344,157.0,8e-05,30]
[351612629,1738663504683,157.0,0.00010333,30]
[351612630,1738663505024,157.0,0.00012667,30]
[351612631,1738663611279,-150.94355322,8.171e-05,2]
[351612633,1738663638090,-22.56644678,8.171e-05,2]
[351612634,1738663638116,-500.0,8.171e-05,2]
[351612635,1738663638138,-500.0,8.171e-05,2]
[351612636,1738663638159,-248.46468113,8.171e-05,2]
[351612637,1738663638185,-150.0,8.183e-05,2]
[351612638,1738663638207,-300.0,8.218e-05,2]
[351612639,1738663638228,-166.73,8.219e-05,2]
[351612640,1738663638251,-860.39,8.219e-05,2]
[351612641,1738663638272,-1000.0,8.219e-05,2]
[351612642,1738663638293,-1835.26,8.219e-05,2]
[351612643,1738663638314,-250.0,8.219e-05,2]
[351612644,1738663638336,-1190.87706963,8.623e-05,2]
[351612646,1738663803554,157.0,8e-05,30]
[351612647,1738663803863,157.0,0.00012667,30]
[351612648,1738663820856,-10000.0,0.00012,18]
[351612649,1738663821851,-10000.0,0.00012,18]
[351612650,1738663822697,-10000.0,0.00012,18]
[351612669,1738663832222,-167.19,8.219e-05,2]
[351612670,1738663832237,-3217.9198055,8.623e-05,2]
[351612671,1738663832247,-300.0,8.7e-05,3]
[351612672,1738663832259,-150.0,8.764e-05,2]
[351612673,1738663832273,-300.0,8.764e-05,2]
[351612674,1738663832293,-564.18,8.765e-05,2]
[351612675,1738663832308,-818.97,8.765e-05,2]
[351612676,1738663832319,-500.0,8.765e-05,2]
[351612677,1738663832328,-500.0,8.765e-05,2]
[351612678,1738663832338,-718.39,8.765e-05,2]
[351612679,1738663832348,-868.08,8.765e-05,2]
[351612680,1738663832358,-500.0,8.765e-05,2]
[351612681,1738663832368,-582.27,8.765e-05,2]
[351612682,1738663832378,-888.89,8.765e-05,2]
[351612683,1738663832387,-500.0,8.766e-05,2]
[351612684,1738663832397,-548.26,8.766e-05,2]
[351612685,1738663832412,-500.0,8.766e-05,2]
[351612686,1738663832428,-500.0,8.766e-05,2]
[351612687,1738663832438,-500.0,8.766e-05,2]
[351612688,1738663832447,-913.28,8.766e-05,2]
[351612689,1738663832457,-500.0,8.766e-05,2]
[351612690,1738663832466,-500.0,8.766e-05,2]